[Event "Late-Titled-Tuesday-Blitz-June-18-2024"]
[Site "Chess.com"]
[Date "2024.06.18"]
[Round "1"]
[White "ReadySkate"]
[Black "andrzej"]
[Result "1-0"]
[WhiteElo "2795"]
[BlackElo "2448"]
[TimeControl "180+1"]
[EndTime "14:06:30 PDT"]
[Termination "ReadySkate won by checkmate"]

1. d4 {[%clk 0:03:00.9]} 1... d5 {[%clk 0:02:59.5]} 2. c4 {[%clk 0:03:00.5]}
2... dxc4 {[%clk 0:02:59.6]} 3. e4 {[%clk 0:03:00.1]} 3... e5 {[%clk 0:02:59.2]}
4. Nf3 {[%clk 0:02:59.6]} 4... Bb4+ {[%clk 0:02:59.7]} 5. Nc3 {[%clk 0:02:57.5]}
5... Nf6 {[%clk 0:02:59.7]} 6. Nxe5 {[%clk 0:02:53.6]} 6... b5 {[%clk
0:02:48.9]} 7. f3 {[%clk 0:02:44.2]} 7... a6 {[%clk 0:02:34.3]} 8. a4 {[%clk
0:02:41.7]} 8... Bb7 {[%clk 0:02:28.6]} 9. Be2 {[%clk 0:02:39.5]} 9... O-O
{[%clk 0:02:26.9]} 10. O-O {[%clk 0:02:38.7]} 10... c5 {[%clk 0:02:18.3]} 11.
Be3 {[%clk 0:02:27.1]} 11... Nbd7 {[%clk 0:02:02.2]} 12. Nxd7 {[%clk 0:02:24.5]}
12... Nxd7 {[%clk 0:02:01.5]} 13. axb5 {[%clk 0:02:24.3]} 13... Bxc3 {[%clk
0:01:33.2]} 14. bxc3 {[%clk 0:02:25.2]} 14... cxd4 {[%clk 0:01:27.9]} 15. bxa6
{[%clk 0:02:18]} 15... dxe3 {[%clk 0:01:14.7]} 16. axb7 {[%clk 0:02:15]} 16...
Rb8 {[%clk 0:00:59.2]} 17. Qd4 {[%clk 0:02:11.2]} 17... Qc7 {[%clk 0:00:37.8]}
18. Qxe3 {[%clk 0:02:09.2]} 18... Rxb7 {[%clk 0:00:36.8]} 19. Ra4 {[%clk
0:02:07.4]} 19... Ne5 {[%clk 0:00:30.2]} 20. Rd1 {[%clk 0:02:04.9]} 20... Rc8
{[%clk 0:00:26.3]} 21. Qd4 {[%clk 0:01:54.4]} 21... Nd3 {[%clk 0:00:20.9]} 22.
Bxd3 {[%clk 0:01:50.4]} 22... cxd3 {[%clk 0:00:20.9]} 23. Rxd3 {[%clk
0:01:50.1]} 23... Rb1+ {[%clk 0:00:21]} 24. Kf2 {[%clk 0:01:49.2]} 24... h5
{[%clk 0:00:18.5]} 25. Qd6 {[%clk 0:01:38.5]} 25... Qxd6 {[%clk 0:00:18.5]} 26.
Rxd6 {[%clk 0:01:38.9]} 26... Rxc3 {[%clk 0:00:19]} 27. Ra8+ {[%clk 0:01:35.1]}
27... Kh7 {[%clk 0:00:19.2]} 28. Ra7 {[%clk 0:01:35.6]} 28... Rc2+ {[%clk
0:00:11.8]} 29. Kg3 {[%clk 0:01:35.3]} 29... Rg1 {[%clk 0:00:12.1]} 30. Rxf7
{[%clk 0:01:34.5]} 30... Rcxg2+ {[%clk 0:00:10.2]} 31. Kf4 {[%clk 0:01:34.5]}
31... Rxh2 {[%clk 0:00:06.9]} 32. e5 {[%clk 0:01:31.6]} 32... Re2 {[%clk
0:00:04.9]} 33. Rd4 {[%clk 0:01:17.8]} 33... h4 {[%clk 0:00:05]} 34. Kf5 {[%clk
0:01:10.8]} 34... Kg8 {[%clk 0:00:05.4]} 35. e6 {[%clk 0:01:07]} 35... h3 {[%clk
0:00:05.2]} 36. Ra7 {[%clk 0:01:03.1]} 36... h2 {[%clk 0:00:04.4]} 37. Ra8+
{[%clk 0:01:03.3]} 37... Kh7 {[%clk 0:00:04.2]} 38. Rh4# {[%clk 0:01:03.9]} 1-0

[Event "Late-Titled-Tuesday-Blitz-June-18-2024"]
[Site "Chess.com"]
[Date "2024.06.18"]
[Round "1"]
[White "WindWhistler11"]
[Black "Jospem"]
[Result "0-1"]
[WhiteElo "2518"]
[BlackElo "3053"]
[TimeControl "180+1"]
[EndTime "14:06:32 PDT"]
[Termination "Jospem won on time"]

1. Nf3 {[%clk 0:02:58.5]} 1... c5 {[%clk 0:02:58.7]} 2. b3 {[%clk 0:02:57]} 2...
Nf6 {[%clk 0:02:58.4]} 3. Bb2 {[%clk 0:02:51.6]} 3... e6 {[%clk 0:02:58.1]} 4.
e3 {[%clk 0:02:50.1]} 4... Be7 {[%clk 0:02:57.6]} 5. Be2 {[%clk 0:02:46.3]} 5...
O-O {[%clk 0:02:56.6]} 6. O-O {[%clk 0:02:45.7]} 6... b6 {[%clk 0:02:54.9]} 7.
d4 {[%clk 0:02:36.2]} 7... cxd4 {[%clk 0:02:55.4]} 8. Nxd4 {[%clk 0:02:33.5]}
8... Bb7 {[%clk 0:02:55.5]} 9. c4 {[%clk 0:02:33.6]} 9... d6 {[%clk 0:02:54.8]}
10. Nc3 {[%clk 0:02:34]} 10... a6 {[%clk 0:02:54.9]} 11. Rc1 {[%clk 0:02:34]}
11... Nbd7 {[%clk 0:02:54.5]} 12. Bf3 {[%clk 0:02:33.4]} 12... Qc8 {[%clk
0:02:53.3]} 13. Qe2 {[%clk 0:02:28.9]} 13... Ne5 {[%clk 0:02:51.2]} 14. Bxb7
{[%clk 0:02:25.5]} 14... Qxb7 {[%clk 0:02:52.1]} 15. Rfd1 {[%clk 0:02:25.5]}
15... Rfc8 {[%clk 0:02:49.4]} 16. h3 {[%clk 0:02:23.6]} 16... Ned7 {[%clk
0:02:48.9]} 17. Qf3 {[%clk 0:02:11.6]} 17... Qxf3 {[%clk 0:02:48.5]} 18. Nxf3
{[%clk 0:02:12.2]} 18... Rab8 {[%clk 0:02:46.5]} 19. Nd4 {[%clk 0:02:09]} 19...
Nc5 {[%clk 0:02:46]} 20. Ba3 {[%clk 0:02:04.8]} 20... Rc7 {[%clk 0:02:41.2]} 21.
Nc2 {[%clk 0:01:57.1]} 21... Nfd7 {[%clk 0:02:35.9]} 22. Rd2 {[%clk 0:01:36.3]}
22... Rbc8 {[%clk 0:02:26.3]} 23. Rcd1 {[%clk 0:01:30]} 23... h6 {[%clk
0:02:20.8]} 24. f3 {[%clk 0:01:26]} 24... Nf6 {[%clk 0:02:12.4]} 25. Nb4 {[%clk
0:01:23.5]} 25... Ra8 {[%clk 0:02:08.7]} 26. Nd3 {[%clk 0:01:21.4]} 26... Ne8
{[%clk 0:02:05]} 27. Bxc5 {[%clk 0:01:12.8]} 27... bxc5 {[%clk 0:02:05.9]} 28.
Nf2 {[%clk 0:01:06.4]} 28... Rc6 {[%clk 0:02:03]} 29. Na4 {[%clk 0:01:04.4]}
29... Rb8 {[%clk 0:02:02.8]} 30. Ne4 {[%clk 0:01:02.2]} 30... f5 {[%clk
0:02:01.1]} 31. Nec3 {[%clk 0:01:01.3]} 31... Kf7 {[%clk 0:02:01.1]} 32. e4
{[%clk 0:00:55.8]} 32... g6 {[%clk 0:01:55.8]} 33. exf5 {[%clk 0:00:51.7]} 33...
gxf5 {[%clk 0:01:56.7]} 34. Nb2 {[%clk 0:00:47]} 34... Bf6 {[%clk 0:01:56.1]}
35. Ne2 {[%clk 0:00:45]} 35... Bg5 {[%clk 0:01:50.2]} 36. Rd3 {[%clk 0:00:34]}
36... a5 {[%clk 0:01:49]} 37. Na4 {[%clk 0:00:34.3]} 37... h5 {[%clk 0:01:44.9]}
38. Nec3 {[%clk 0:00:34.3]} 38... h4 {[%clk 0:01:44.8]} 39. Nb5 {[%clk
0:00:34.7]} 39... Be7 {[%clk 0:01:44.9]} 40. Nac3 {[%clk 0:00:28]} 40... Rcb6
{[%clk 0:01:41.9]} 41. Re1 {[%clk 0:00:23.8]} 41... Bf6 {[%clk 0:01:37.9]} 42.
Rde3 {[%clk 0:00:21.9]} 42... Bd4 {[%clk 0:01:30.3]} 43. Nxd4 {[%clk 0:00:11.4]}
43... cxd4 {[%clk 0:01:31.2]} 44. Rxe6 {[%clk 0:00:11.3]} 44... dxc3 {[%clk
0:01:31.5]} 45. Re7+ {[%clk 0:00:11.9]} 45... Kf8 {[%clk 0:01:27.5]} 46. Rh7
{[%clk 0:00:05.6]} 46... Kg8 {[%clk 0:01:26.5]} 47. Rh5 {[%clk 0:00:03.6]} 47...
a4 {[%clk 0:01:24.8]} 0-1

[Event "Late-Titled-Tuesday-Blitz-June-18-2024"]
[Site "Chess.com"]
[Date "2024.06.18"]
[Round "1"]
[White "th3d4rkness"]
[Black "kosmeg"]
[Result "1-0"]
[WhiteElo "2207"]
[BlackElo "2572"]
[TimeControl "180+1"]
[EndTime "14:06:34 PDT"]
[Termination "th3d4rkness won by checkmate"]

1. e4 {[%clk 0:03:00.2]} 1... c6 {[%clk 0:02:57.9]} 2. d4 {[%clk 0:02:59.5]}
2... d5 {[%clk 0:02:58.8]} 3. e5 {[%clk 0:02:59.8]} 3... Bf5 {[%clk 0:02:58.5]}
4. h4 {[%clk 0:02:59.1]} 4... Qb6 {[%clk 0:02:58.3]} 5. g4 {[%clk 0:02:54.4]}
5... Bd7 {[%clk 0:02:56.8]} 6. c3 {[%clk 0:02:46.4]} 6... c5 {[%clk 0:02:55.1]}
7. Bg2 {[%clk 0:02:35.6]} 7... cxd4 {[%clk 0:02:47.3]} 8. cxd4 {[%clk
0:02:35.7]} 8... e6 {[%clk 0:02:27.3]} 9. Nc3 {[%clk 0:02:32.7]} 9... Nc6 {[%clk
0:02:27.4]} 10. Nge2 {[%clk 0:02:32.1]} 10... h5 {[%clk 0:02:20.2]} 11. g5
{[%clk 0:02:20.7]} 11... Nge7 {[%clk 0:02:18]} 12. Bh3 {[%clk 0:02:11.1]} 12...
Rc8 {[%clk 0:01:58.8]} 13. Na4 {[%clk 0:02:07]} 13... Qd8 {[%clk 0:01:50.5]} 14.
Be3 {[%clk 0:02:00.8]} 14... Na5 {[%clk 0:01:50.2]} 15. Nc5 {[%clk 0:01:54.9]}
15... b6 {[%clk 0:01:46.3]} 16. Nxd7 {[%clk 0:01:45.9]} 16... Qxd7 {[%clk
0:01:46.4]} 17. b3 {[%clk 0:01:45]} 17... g6 {[%clk 0:01:45.1]} 18. O-O {[%clk
0:01:43.9]} 18... Nec6 {[%clk 0:01:43.1]} 19. Rc1 {[%clk 0:01:40.2]} 19... Ba3
{[%clk 0:01:43.4]} 20. Rb1 {[%clk 0:01:35.4]} 20... O-O {[%clk 0:01:43.5]} 21.
Nf4 {[%clk 0:01:20.7]} 21... Nb4 {[%clk 0:01:41.8]} 22. Nxh5 {[%clk 0:01:16.4]}
22... gxh5 {[%clk 0:01:39]} 23. Qxh5 {[%clk 0:01:15.6]} 23... Rc2 {[%clk
0:01:28.6]} 24. Kh1 {[%clk 0:01:14.1]} 24... Nac6 {[%clk 0:01:10.4]} 25. g6
{[%clk 0:01:04.3]} 25... f5 {[%clk 0:00:53.7]} 26. exf6 {[%clk 0:00:53.5]} 26...
Rxf6 {[%clk 0:00:53.2]} 27. Bg5 {[%clk 0:00:34.6]} 27... Rfxf2 {[%clk 0:00:39]}
28. Rxf2 {[%clk 0:00:33.4]} 28... Rxf2 {[%clk 0:00:39.9]} 29. Bxe6+ {[%clk
0:00:18.5]} 29... Kf8 {[%clk 0:00:22.3]} 30. Qh8# {[%clk 0:00:18.1]} 1-0

[Event "Late-Titled-Tuesday-Blitz-June-18-2024"]
[Site "Chess.com"]
[Date "2024.06.18"]
[Round "1"]
[White "canhhuan"]
[Black "Bauman_Guy"]
[Result "1/2-1/2"]
[WhiteElo "2501"]
[BlackElo "2907"]
[TimeControl "180+1"]
[EndTime "14:06:37 PDT"]
[Termination "Game drawn by repetition"]

1. e4 {[%clk 0:03:00.9]} 1... c5 {[%clk 0:02:59.1]} 2. Nf3 {[%clk 0:03:00.4]}
2... e6 {[%clk 0:02:59.1]} 3. d4 {[%clk 0:02:59.2]} 3... cxd4 {[%clk 0:03:00]}
4. Nxd4 {[%clk 0:02:59.8]} 4... Nc6 {[%clk 0:03:00]} 5. Nc3 {[%clk 0:02:57]}
5... Nf6 {[%clk 0:02:59.5]} 6. Bf4 {[%clk 0:02:56.5]} 6... Bb4 {[%clk
0:02:49.1]} 7. Nb5 {[%clk 0:02:51.7]} 7... O-O {[%clk 0:02:45.8]} 8. Bd6 {[%clk
0:02:47.3]} 8... Bxd6 {[%clk 0:02:41.5]} 9. Nxd6 {[%clk 0:02:45.8]} 9... a6
{[%clk 0:02:37.6]} 10. a3 {[%clk 0:02:45.1]} 10... b5 {[%clk 0:02:35.8]} 11. Be2
{[%clk 0:02:36.4]} 11... Qe7 {[%clk 0:02:32.8]} 12. O-O {[%clk 0:02:35]} 12...
Ne8 {[%clk 0:02:32.7]} 13. Nxc8 {[%clk 0:02:34.8]} 13... Rxc8 {[%clk 0:02:33.3]}
14. Qd2 {[%clk 0:02:31.4]} 14... Nc7 {[%clk 0:02:26.1]} 15. Bd3 {[%clk
0:02:29.5]} 15... Rfd8 {[%clk 0:02:24]} 16. Rfe1 {[%clk 0:02:26.9]} 16... d6
{[%clk 0:02:22.1]} 17. Rad1 {[%clk 0:02:25.2]} 17... Ne5 {[%clk 0:02:21.8]} 18.
Qf4 {[%clk 0:02:22]} 18... Na8 {[%clk 0:02:19.1]} 19. Qc1 {[%clk 0:02:16.5]}
19... Nb6 {[%clk 0:02:18.7]} 20. Be2 {[%clk 0:02:15.2]} 20... h6 {[%clk
0:02:12.4]} 21. f4 {[%clk 0:02:14.4]} 21... Ng6 {[%clk 0:02:11]} 22. Bf3 {[%clk
0:02:01]} 22... Nc4 {[%clk 0:02:09.6]} 23. a4 {[%clk 0:02:00.3]} 23... b4 {[%clk
0:02:09.1]} 24. Ne2 {[%clk 0:02:00.3]} 24... a5 {[%clk 0:02:08.7]} 25. Kh1
{[%clk 0:01:52.4]} 25... Qa7 {[%clk 0:02:04.4]} 26. Nd4 {[%clk 0:01:52]} 26...
Qc5 {[%clk 0:01:55.9]} 27. f5 {[%clk 0:01:49.6]} 27... Nf8 {[%clk 0:01:53.2]}
28. fxe6 {[%clk 0:01:49.6]} 28... fxe6 {[%clk 0:01:52.3]} 29. b3 {[%clk
0:01:48.1]} 29... Ne5 {[%clk 0:01:50.2]} 30. Qe3 {[%clk 0:01:43.7]} 30... Qc3
{[%clk 0:01:49.3]} 31. Qf2 {[%clk 0:01:42.1]} 31... Rd7 {[%clk 0:01:46.1]} 32.
Qg3 {[%clk 0:01:38.3]} 32... Rf7 {[%clk 0:01:45.4]} 33. Nb5 {[%clk 0:01:31.9]}
33... Qxc2 {[%clk 0:01:40]} 34. Bh5 {[%clk 0:01:29]} 34... Rf6 {[%clk
0:01:13.3]} 35. Nxd6 {[%clk 0:01:24.1]} 35... Rc5 {[%clk 0:01:13.4]} 36. Nb7
{[%clk 0:01:22.8]} 36... Nfd7 {[%clk 0:01:04.2]} 37. Nxc5 {[%clk 0:01:22.2]}
37... Qxc5 {[%clk 0:01:04.4]} 38. Be8 {[%clk 0:01:09.4]} 38... Nf8 {[%clk
0:01:02.1]} 39. Rc1 {[%clk 0:01:08.8]} 39... Qd6 {[%clk 0:00:40.1]} 40. Red1
{[%clk 0:01:00.7]} 40... Qb8 {[%clk 0:00:40.2]} 41. Rc5 {[%clk 0:01:00.2]} 41...
Qd8 {[%clk 0:00:37.2]} 42. Rcc1 {[%clk 0:00:56.9]} 42... Qb8 {[%clk 0:00:33.8]}
43. Rc5 {[%clk 0:00:52.9]} 43... Qd8 {[%clk 0:00:25.7]} 44. Rcc1 {[%clk
0:00:52.7]} 44... Qb8 {[%clk 0:00:15.6]} 1/2-1/2

[Event "Late-Titled-Tuesday-Blitz-June-18-2024"]
[Site "Chess.com"]
[Date "2024.06.18"]
[Round "1"]
[White "Hakiki_satranc"]
[Black "Zurability"]
[Result "0-1"]
[WhiteElo "2446"]
[BlackElo "2791"]
[TimeControl "180+1"]
[EndTime "14:06:37 PDT"]
[Termination "Zurability won on time"]

1. d4 {[%clk 0:03:00.9]} 1... Nf6 {[%clk 0:02:55.8]} 2. Nf3 {[%clk 0:02:58.9]}
2... e6 {[%clk 0:02:55.1]} 3. Nbd2 {[%clk 0:02:59.2]} 3... d5 {[%clk 0:02:54.8]}
4. e3 {[%clk 0:02:59.1]} 4... c5 {[%clk 0:02:53.1]} 5. Bd3 {[%clk 0:02:56.8]}
5... Nc6 {[%clk 0:02:53.3]} 6. O-O {[%clk 0:02:53.5]} 6... Bd6 {[%clk
0:02:53.1]} 7. b3 {[%clk 0:02:52]} 7... cxd4 {[%clk 0:02:46]} 8. exd4 {[%clk
0:02:52.9]} 8... O-O {[%clk 0:02:46.1]} 9. Bb2 {[%clk 0:02:51]} 9... Nb4 {[%clk
0:02:44.5]} 10. Be2 {[%clk 0:02:49.1]} 10... Qc7 {[%clk 0:02:45]} 11. c3 {[%clk
0:02:37.3]} 11... Nc6 {[%clk 0:02:44.8]} 12. b4 {[%clk 0:02:26.3]} 12... Bd7
{[%clk 0:02:31.2]} 13. Re1 {[%clk 0:02:20]} 13... Ne4 {[%clk 0:02:20.5]} 14. a3
{[%clk 0:02:14.5]} 14... f5 {[%clk 0:02:15.9]} 15. Rc1 {[%clk 0:02:14.3]} 15...
Bf4 {[%clk 0:02:10.6]} 16. g3 {[%clk 0:02:07.3]} 16... Bh6 {[%clk 0:01:58.7]}
17. c4 {[%clk 0:02:07]} 17... Qd8 {[%clk 0:01:52]} 18. cxd5 {[%clk 0:01:50.1]}
18... exd5 {[%clk 0:01:51.9]} 19. Rc2 {[%clk 0:01:49.1]} 19... Kh8 {[%clk
0:01:42.8]} 20. Nf1 {[%clk 0:01:39.5]} 20... f4 {[%clk 0:01:43]} 21. Bc1 {[%clk
0:01:17.9]} 21... Bh3 {[%clk 0:01:37.3]} 22. Ne5 {[%clk 0:01:04.9]} 22... fxg3
{[%clk 0:01:26.8]} 23. fxg3 {[%clk 0:00:54.6]} 23... Bxc1 {[%clk 0:00:44]} 24.
Qxc1 {[%clk 0:00:45.5]} 24... Nxd4 {[%clk 0:00:43]} 25. Bd3 {[%clk 0:00:32.6]}
25... Nxc2 {[%clk 0:00:39.3]} 26. Qxc2 {[%clk 0:00:33.5]} 26... Qb6+ {[%clk
0:00:39.4]} 27. Ne3 {[%clk 0:00:24.8]} 27... Rae8 {[%clk 0:00:39]} 28. Bxe4
{[%clk 0:00:18.5]} 28... Rxe5 {[%clk 0:00:37.7]} 29. Kh1 {[%clk 0:00:02.3]}
29... Qxe3 {[%clk 0:00:33.7]} 0-1

[Event "Late-Titled-Tuesday-Blitz-June-18-2024"]
[Site "Chess.com"]
[Date "2024.06.18"]
[Round "1"]
[White "jero888"]
[Black "karinachess1"]
[Result "0-1"]
[WhiteElo "2348"]
[BlackElo "2652"]
[TimeControl "180+1"]
[EndTime "14:06:38 PDT"]
[Termination "karinachess1 won by resignation"]

1. e4 {[%clk 0:02:55.5]} 1... e5 {[%clk 0:03:00]} 2. Nf3 {[%clk 0:02:54.2]} 2...
Nc6 {[%clk 0:03:00.1]} 3. Bb5 {[%clk 0:02:51.3]} 3... Nge7 {[%clk 0:02:59.2]} 4.
O-O {[%clk 0:02:48]} 4... Ng6 {[%clk 0:02:59.3]} 5. c3 {[%clk 0:02:37.1]} 5...
a6 {[%clk 0:02:56.8]} 6. Ba4 {[%clk 0:02:36.6]} 6... Be7 {[%clk 0:02:52.7]} 7.
Re1 {[%clk 0:02:33.2]} 7... O-O {[%clk 0:02:52.3]} 8. d3 {[%clk 0:02:13.3]} 8...
b5 {[%clk 0:02:52.5]} 9. Bc2 {[%clk 0:02:08.4]} 9... Bb7 {[%clk 0:02:44.3]} 10.
Nbd2 {[%clk 0:02:09.3]} 10... d5 {[%clk 0:02:44.1]} 11. Nf1 {[%clk 0:01:57.9]}
11... Bc5 {[%clk 0:02:25.7]} 12. Ng3 {[%clk 0:01:40.2]} 12... dxe4 {[%clk
0:02:15.8]} 13. dxe4 {[%clk 0:01:36.8]} 13... Qxd1 {[%clk 0:02:16.4]} 14. Rxd1
{[%clk 0:01:35.9]} 14... Rfd8 {[%clk 0:02:16.6]} 15. Be3 {[%clk 0:01:27.3]}
15... Bxe3 {[%clk 0:02:13.1]} 16. fxe3 {[%clk 0:01:28.2]} 16... Na5 {[%clk
0:02:10.4]} 17. Bb3 {[%clk 0:01:24]} 17... Nxb3 {[%clk 0:02:03.1]} 18. axb3
{[%clk 0:01:24.9]} 18... f6 {[%clk 0:02:03.8]} 19. Kf2 {[%clk 0:01:07.3]} 19...
Nf8 {[%clk 0:02:04]} 20. Ke2 {[%clk 0:00:52.9]} 20... Ne6 {[%clk 0:02:04.3]} 21.
b4 {[%clk 0:00:48.1]} 21... g6 {[%clk 0:01:56.5]} 22. Rxd8+ {[%clk 0:00:48.3]}
22... Rxd8 {[%clk 0:01:56.3]} 23. Nd2 {[%clk 0:00:48.9]} 23... h5 {[%clk
0:01:54.3]} 24. h4 {[%clk 0:00:47.4]} 24... Kf7 {[%clk 0:01:41.8]} 25. Nb3
{[%clk 0:00:46.7]} 25... Rd6 {[%clk 0:01:38.5]} 26. Nc5 {[%clk 0:00:44.9]} 26...
Bc8 {[%clk 0:01:37.8]} 27. Nf1 {[%clk 0:00:36.1]} 27... Ke7 {[%clk 0:01:13.6]}
28. Nd2 {[%clk 0:00:33.6]} 28... Nxc5 {[%clk 0:01:12.2]} 29. bxc5 {[%clk
0:00:32.6]} 29... Bg4+ {[%clk 0:01:13.1]} 30. Nf3 {[%clk 0:00:28.2]} 30... Re6
{[%clk 0:01:06]} 31. Kf2 {[%clk 0:00:25.4]} 31... Rc6 {[%clk 0:00:57.8]} 32. b4
{[%clk 0:00:23.7]} 32... Bc8 {[%clk 0:00:57.9]} 33. Nd2 {[%clk 0:00:21.6]} 33...
Re6 {[%clk 0:00:55.2]} 34. Nb3 {[%clk 0:00:20.6]} 34... g5 {[%clk 0:00:53.2]}
35. g3 {[%clk 0:00:19.5]} 35... Kf7 {[%clk 0:00:50.9]} 36. Rh1 {[%clk
0:00:18.6]} 36... Kg6 {[%clk 0:00:51.2]} 37. Nd2 {[%clk 0:00:17.8]} 37... Re8
{[%clk 0:00:49.7]} 38. Nb3 {[%clk 0:00:17.8]} 38... Rd8 {[%clk 0:00:49.3]} 39.
Ke2 {[%clk 0:00:16.9]} 39... Bg4+ {[%clk 0:00:49.3]} 40. Ke1 {[%clk 0:00:17.4]}
40... Rd1+ {[%clk 0:00:48.1]} 41. Kf2 {[%clk 0:00:17.1]} 41... Rxh1 {[%clk
0:00:49]} 0-1

[Event "Late-Titled-Tuesday-Blitz-June-18-2024"]
[Site "Chess.com"]
[Date "2024.06.18"]
[Round "1"]
[White "manitodeplomo"]
[Black "Chempiblinka"]
[Result "1-0"]
[WhiteElo "2676"]
[BlackElo "2370"]
[TimeControl "180+1"]
[EndTime "14:06:39 PDT"]
[Termination "manitodeplomo won by checkmate"]

1. d4 {[%clk 0:02:57.3]} 1... Nf6 {[%clk 0:02:59.1]} 2. c4 {[%clk 0:02:55.2]}
2... g6 {[%clk 0:02:58.9]} 3. Nc3 {[%clk 0:02:54.8]} 3... Bg7 {[%clk 0:02:58.5]}
4. e4 {[%clk 0:02:54.4]} 4... d6 {[%clk 0:02:58.7]} 5. Be2 {[%clk 0:02:54.5]}
5... O-O {[%clk 0:02:58.8]} 6. Nf3 {[%clk 0:02:54.9]} 6... Bg4 {[%clk
0:02:58.6]} 7. Be3 {[%clk 0:02:50.9]} 7... Nfd7 {[%clk 0:02:57.7]} 8. O-O {[%clk
0:02:37.6]} 8... Nc6 {[%clk 0:02:52]} 9. d5 {[%clk 0:02:37]} 9... Bxf3 {[%clk
0:02:50.4]} 10. Bxf3 {[%clk 0:02:36.3]} 10... Na5 {[%clk 0:02:47.7]} 11. Be2
{[%clk 0:02:35.5]} 11... Bxc3 {[%clk 0:02:36.5]} 12. bxc3 {[%clk 0:02:34.3]}
12... e5 {[%clk 0:02:29.9]} 13. Qa4 {[%clk 0:02:12.9]} 13... b6 {[%clk
0:02:27.5]} 14. Qc2 {[%clk 0:01:46.8]} 14... f5 {[%clk 0:01:53.5]} 15. exf5
{[%clk 0:01:36.9]} 15... Rxf5 {[%clk 0:01:39.3]} 16. Bd3 {[%clk 0:01:28.9]}
16... Rf8 {[%clk 0:01:37.7]} 17. f4 {[%clk 0:01:29.1]} 17... Qh4 {[%clk
0:01:35.6]} 18. g3 {[%clk 0:00:49.2]} 18... Qe7 {[%clk 0:01:19.4]} 19. f5 {[%clk
0:00:44.3]} 19... g5 {[%clk 0:00:58.8]} 20. f6 {[%clk 0:00:43.8]} 20... Rxf6
{[%clk 0:00:52.9]} 21. Rxf6 {[%clk 0:00:43.2]} 21... Nxf6 {[%clk 0:00:37.7]} 22.
Bxg5 {[%clk 0:00:42.2]} 22... Rf8 {[%clk 0:00:29.6]} 23. Rf1 {[%clk 0:00:40]}
23... Qg7 {[%clk 0:00:28.9]} 24. Qd2 {[%clk 0:00:39.7]} 24... Ng4 {[%clk
0:00:17.3]} 25. Bf5 {[%clk 0:00:39.3]} 25... h5 {[%clk 0:00:15.6]} 26. h3 {[%clk
0:00:36.4]} 26... Nxc4 {[%clk 0:00:12.9]} 27. Qc1 {[%clk 0:00:33.9]} 27... Nge3
{[%clk 0:00:12.6]} 28. Be6+ {[%clk 0:00:31.4]} 28... Kh8 {[%clk 0:00:09.7]} 29.
Rxf8+ {[%clk 0:00:31]} 29... Qxf8 {[%clk 0:00:10]} 30. Bxe3 {[%clk 0:00:31.5]}
30... Qf3 {[%clk 0:00:09]} 31. Bf2 {[%clk 0:00:31.5]} 31... e4 {[%clk
0:00:08.2]} 32. Qh6# {[%clk 0:00:31.3]} 1-0

[Event "Late-Titled-Tuesday-Blitz-June-18-2024"]
[Site "Chess.com"]
[Date "2024.06.18"]
[Round "1"]
[White "Roachelley"]
[Black "AungTZ"]
[Result "1-0"]
[WhiteElo "2544"]
[BlackElo "1975"]
[TimeControl "180+1"]
[EndTime "14:06:39 PDT"]
[Termination "Roachelley won on time"]

1. Nf3 {[%clk 0:03:00]} 1... d5 {[%clk 0:02:57.6]} 2. e3 {[%clk 0:03:00.7]} 2...
c5 {[%clk 0:02:56.7]} 3. b3 {[%clk 0:03:01.1]} 3... Nc6 {[%clk 0:02:56]} 4. Bb2
{[%clk 0:03:01.8]} 4... e6 {[%clk 0:02:56.6]} 5. Be2 {[%clk 0:03:02.3]} 5... Nf6
{[%clk 0:02:57.1]} 6. O-O {[%clk 0:03:03]} 6... Be7 {[%clk 0:02:57.6]} 7. d4
{[%clk 0:03:03.6]} 7... O-O {[%clk 0:02:57.2]} 8. Nbd2 {[%clk 0:03:03.7]} 8...
b6 {[%clk 0:02:57.4]} 9. c4 {[%clk 0:03:03.5]} 9... Bb7 {[%clk 0:02:56.4]} 10.
cxd5 {[%clk 0:03:03.5]} 10... exd5 {[%clk 0:02:53.2]} 11. Rc1 {[%clk 0:03:03.5]}
11... Rc8 {[%clk 0:02:52]} 12. dxc5 {[%clk 0:03:03.2]} 12... bxc5 {[%clk
0:02:51.3]} 13. Bb5 {[%clk 0:03:02.1]} 13... Qa5 {[%clk 0:02:46.1]} 14. a4
{[%clk 0:02:56.2]} 14... a6 {[%clk 0:02:37.7]} 15. Bxc6 {[%clk 0:02:54.6]} 15...
Bxc6 {[%clk 0:02:34.5]} 16. Ne5 {[%clk 0:02:55.1]} 16... Ba8 {[%clk 0:02:31.3]}
17. Bc3 {[%clk 0:02:51]} 17... Qb6 {[%clk 0:02:28.8]} 18. Ng4 {[%clk 0:02:49.3]}
18... Rfd8 {[%clk 0:02:25.6]} 19. Nxf6+ {[%clk 0:02:43.7]} 19... Bxf6 {[%clk
0:02:25.1]} 20. Qg4 {[%clk 0:02:43.8]} 20... Rc6 {[%clk 0:01:49.9]} 21. f3
{[%clk 0:02:20.7]} 21... Bxc3 {[%clk 0:01:39.4]} 22. Rxc3 {[%clk 0:02:20.4]}
22... d4 {[%clk 0:01:37.4]} 23. Rd3 {[%clk 0:02:08.1]} 23... dxe3 {[%clk
0:01:31.3]} 24. Nc4 {[%clk 0:02:06.5]} 24... Qb8 {[%clk 0:01:18.2]} 25. Rxe3
{[%clk 0:02:04]} 25... Rg6 {[%clk 0:01:18.1]} 26. Qf5 {[%clk 0:02:00.7]} 26...
Bd5 {[%clk 0:01:17.1]} 27. Rfe1 {[%clk 0:01:54.1]} 27... Be6 {[%clk 0:01:16.4]}
28. Qxc5 {[%clk 0:01:53.6]} 28... Rh6 {[%clk 0:01:03.3]} 29. g3 {[%clk
0:01:49.5]} 29... Rg6 {[%clk 0:00:59.1]} 30. Ne5 {[%clk 0:01:48.5]} 30... Rf6
{[%clk 0:00:53.5]} 31. Nc6 {[%clk 0:01:47.4]} 31... Qd6 {[%clk 0:00:39.2]} 32.
Qc3 {[%clk 0:01:34.7]} 32... Re8 {[%clk 0:00:22.6]} 33. b4 {[%clk 0:01:30.8]}
33... h5 {[%clk 0:00:21.6]} 34. b5 {[%clk 0:01:30.7]} 34... axb5 {[%clk
0:00:20.3]} 35. axb5 {[%clk 0:01:30.7]} 35... h4 {[%clk 0:00:20.4]} 36. Qe5
{[%clk 0:01:27.1]} 36... Qd2 {[%clk 0:00:16.6]} 37. Qd4 {[%clk 0:01:22.9]} 37...
Qa2 {[%clk 0:00:11.1]} 38. Qxh4 {[%clk 0:01:21.8]} 38... Qb2 {[%clk 0:00:08.4]}
39. Qg5 {[%clk 0:01:19]} 39... Rf5 {[%clk 0:00:06]} 40. Ne7+ {[%clk 0:01:13.9]}
40... Rxe7 {[%clk 0:00:04.6]} 41. Qxe7 {[%clk 0:01:14.8]} 41... Qxb5 {[%clk
0:00:04]} 42. Qd8+ {[%clk 0:01:14.1]} 42... Kh7 {[%clk 0:00:03.6]} 43. Qd3
{[%clk 0:01:14.1]} 43... g6 {[%clk 0:00:02.9]} 44. Qxb5 {[%clk 0:01:13.5]} 44...
Rxb5 {[%clk 0:00:03.1]} 45. Rc3 {[%clk 0:01:13.9]} 45... Rb2 {[%clk 0:00:02.9]}
46. Rc7 {[%clk 0:01:13.7]} 46... Kg7 {[%clk 0:00:02]} 47. Rxe6 {[%clk
0:01:13.1]} 1-0